bitfinex/quotes_SOLUSD_20230905
["timestamp","ask_amount","ask_price","bid_price","bid_amount"]
[1693913388206,2.94461037,19.528,19.512,248.02313222]
[1693913388511,22.94461037,19.528,19.512,248.02313222]
[1693913389108,30.93261037,19.528,19.512,248.02313222]
[1693913390001,30.93261037,19.528,19.512,146.03813222]
[1693913390206,2.94461037,19.528,19.512,146.03813222]
[1693913390507,2.94461037,19.528,19.517,90.173]
[1693913390694,2.94461037,19.53,19.521,33.809]
[1693913390891,7.986,19.534,19.521,33.809]
[1693913390892,2.94461037,19.533,19.521,33.809]
[1693913391522,2.94461037,19.534,19.521,33.809]
[1693913393613,10.93061037,19.534,19.521,33.809]
[1693913394916,10.93061037,19.534,19.522,55.0]
[1693913395099,10.93061037,19.534,19.525,7.989]
[1693913395296,10.93061037,19.534,19.527,7.988]
[1693913398317,2.94461037,19.534,19.527,7.988]
[1693913400316,2.94461037,19.536,19.528,20.0]
[1693913400521,2.94461037,19.536,19.53,7.987]
[1693913401413,2.94461037,19.536,19.53,33.793]
[1693913401920,2.94461037,19.542,19.53,33.793]
[1693913402428,2.94461037,19.54,19.534,7.986]
[1693913403915,39.983,19.54,19.532,7.986]
[1693913404227,2.94461037,19.539,19.532,7.986]
[1693913404534,10.92861037,19.539,19.532,7.986]
[1693913407429,2.94461037,19.539,19.532,7.986]
[1693913416634,592.04461037,19.539,19.52,25.809]
[1693913416835,592.04461037,19.539,19.505,1.99999999]
[1693913416836,32.0,19.53,19.505,1.99999999]
[1693913417043,817.94351031,19.538,19.505,1.99999999]
[1693913417044,32.0,19.52,19.505,9.99699999]
[1693913417333,7.993,19.516,19.502,7.998]
[1693913417720,90.0685,19.515,19.502,7.998]
[1693913417926,90.0685,19.515,19.503,0.73438753]
[1693913418116,90.0685,19.515,19.506,7.997]
[1693913420240,20.0,19.519,19.506,7.997]
[1693913421644,7.993,19.518,19.506,7.997]
[1693913422033,20.0,19.519,19.506,7.997]
[1693913422537,27.992,19.519,19.506,7.997]
[1693913426034,53.54520587,19.518,19.504,7.998]
[1693913428240,53.54520587,19.518,19.503,7.998]
[1693913428449,55.0,19.517,19.501,7.999]
[1693913428743,7.994,19.513,19.502,0.96496285]
[1693913429238,7.994,19.513,19.501,7.999]
[1693913429935,7.994,19.513,19.502,0.50675366]
[1693913430243,7.994,19.513,19.501,7.999]
[1693913430538,7.994,19.513,6.528,0.5]
[1693913430539,31.93,19.51,19.495,8.001]
[1693913430747,31.93,19.51,19.489,56.44]
[1693913430748,7.997,19.506,19.496,21.56895711]
[1693913430932,7.997,19.508,19.496,29.56995711]
[1693913431136,39.926,19.51,19.496,29.56995711]
[1693913439533,31.93,19.51,19.496,29.56995711]
[1693913440245,94.4793,19.512,19.496,29.56995711]
[1693913440638,7.995,19.513,19.496,29.56995711]
[1693913441644,7.994,19.515,19.496,29.56995711]
[1693913443253,7.994,19.515,19.496,71.02562086]
[1693913443751,7.996,19.509,19.496,71.02562086]
[1693913443953,7.995,19.51,19.496,71.02562086]
[1693913446550,55.0,19.514,19.496,71.02562086]
[1693913446551,7.995,19.511,19.496,71.02562086]
[1693913447939,31.95,19.51,19.496,71.02562086]
[1693913449958,31.95,19.51,19.497,55.0]
[1693913450137,31.95,19.51,19.499,1.99999999]
[1693913450337,31.95,19.51,19.469,56.498]
[1693913450338,184.326,19.498,19.469,56.498]
[1693913450538,31.95,19.48,19.464,102.237]
[1693913450749,31.95,19.48,19.471,8.011]
[1693913452646,31.95,19.48,19.472,55.0]
[1693913453041,102.9728,19.485,19.472,63.011]
[1693913453247,94.9668,19.485,19.472,63.011]
[1693913453453,102.9728,19.485,19.472,63.011]
[1693913453858,94.9668,19.485,19.472,63.011]
[1693913455050,8.005,19.486,19.472,63.011]
[1693913455358,8.005,19.487,19.472,63.011]
[1693913456762,8.005,19.487,19.472,8.011]
[1693913458164,8.005,19.487,19.473,63.011]
[1693913461266,8.005,19.487,19.473,55.0]
[1693913461566,8.005,19.487,19.472,8.011]
[1693913465053,8.005,19.487,19.473,55.0]
[1693913465254,8.005,19.487,19.474,8.01]
[1693913465455,8.005,19.487,19.475,55.0]
[1693913465956,8.005,19.487,19.475,63.01]
[1693913471467,8.005,19.487,19.475,55.0]
[1693913471768,8.005,19.487,19.474,55.0]
[1693913471963,8.005,19.487,19.474,63.01]
[1693913475372,64.452,19.487,19.464,158.749]
[1693913475566,64.452,19.487,19.466,20.0]
[1693913476357,64.452,19.487,19.471,8.011]
[1693913476558,8.005,19.487,19.471,8.011]
[1693913478672,55.0,19.486,19.471,8.011]
[1693913478873,8.006,19.484,19.471,8.011]
[1693913479977,8.006,19.484,19.472,55.0]
[1693913480167,8.006,19.484,19.472,63.011]
[1693913480367,8.006,19.484,19.472,8.011]
[1693913483384,8.006,19.484,19.471,8.011]
[1693913483588,8.006,19.484,19.472,55.0]
[1693913483880,8.006,19.484,19.472,63.011]
[1693913484672,8.006,19.484,19.466,45.891]
[1693913484878,32.04,19.48,19.469,8.012]
[1693913485087,40.048,19.48,19.469,8.012]
[1693913485886,32.04,19.48,19.469,8.012]
[1693913486380,32.04,19.48,19.47,55.0]
[1693913486780,32.04,19.48,19.47,63.012]
[1693913495683,32.04,19.48,19.47,8.012]
[1693913496974,8.008,19.479,19.467,8.013]
[1693913497285,8.008,19.479,19.468,20.0]
[1693913497995,8.008,19.479,19.468,28.012]
[1693913501494,40.068,19.48,19.468,28.012]
[1693913504892,40.068,19.48,19.468,20.0]
[1693913505190,40.068,19.48,19.467,20.0]
[1693913505385,40.068,19.48,19.467,28.013]
[1693913505990,40.068,19.48,19.467,20.0]
[1693913506189,55.0,19.479,19.466,20.0]
[1693913506494,8.009,19.477,19.466,28.013]
[1693913508491,8.009,19.477,19.466,20.0]
[1693913508890,8.009,19.477,19.466,28.013]
[1693913511607,8.009,19.477,19.464,8.014]
[1693913511794,32.06,19.47,19.462,8.015]
[1693913514202,8.009,19.478,19.462,33.911]
[1693913514505,8.009,19.477,19.463,55.0]
[1693913514696,8.009,19.477,19.466,8.013]
[1693913514896,8.009,19.477,19.467,55.0]
[1693913515803,8.009,19.477,19.467,63.013]
[1693913517404,8.009,19.477,19.467,55.0]
[1693913517795,8.008,19.479,19.467,63.013]
[1693913518303,28.009,19.478,19.467,63.013]
[1693913518804,28.009,19.478,19.467,55.0]
[1693913519110,28.009,19.478,19.465,8.014]
[1693913524808,28.009,19.478,19.462,41.10118129]
[1693913525006,28.009,19.478,19.463,8.014]
[1693913536217,28.009,19.478,19.463,23.20516134]
[1693913540024,28.009,19.478,19.464,55.0]
[1693913540224,28.009,19.478,19.465,8.014]
[1693913540425,28.009,19.478,19.466,55.0]
[1693913542022,8.009,19.478,19.466,55.0]
[1693913542222,32.06,19.48,19.467,20.0]
[1693913542440,32.06,19.48,19.47,8.012]
[1693913544031,32.06,19.48,19.471,55.0]
[1693913544234,32.06,19.48,19.471,63.011]
[1693913550634,155.26389409,19.483,19.471,88.895]
[1693913563247,155.26389409,19.483,19.471,63.011]
[1693913564739,163.27089409,19.483,19.471,63.011]
[1693913571558,155.26389409,19.483,19.471,63.011]
[1693913574159,163.27089409,19.483,19.471,63.011]
[1693913575447,97.7103,19.485,19.471,119.505]
[1693913575970,8.005,19.486,19.471,119.505]
[1693913577656,8.005,19.486,19.471,63.011]
[1693913583366,95.354,19.489,19.471,63.011]
[1693913583575,20.0,19.488,19.471,63.011]
[1693913583757,8.005,19.486,19.471,63.011]
[1693913584665,32.06,19.49,19.476,33.886]
[1693913584871,40.064,19.49,19.48,8.007]
[1693913585368,98.7577,19.489,19.48,8.007]
[1693913593777,106.7617,19.489,19.48,8.007]
[1693913593959,98.7577,19.489,19.48,8.007]
[1693913594972,98.7577,19.489,19.481,55.0]
[1693913595174,32.06,19.49,19.481,63.007]
[1693913596167,32.06,19.49,19.481,8.007]
[1693913596377,40.064,19.49,19.477,20.0]
[1693913596582,40.064,19.49,19.477,28.009]
[1693913598569,40.064,19.49,19.478,55.0]
[1693913598773,40.064,19.49,19.479,20.0]
[1693913600180,40.064,19.49,19.478,63.008]
[1693913600476,40.064,19.49,19.479,20.0]
[1693913606482,40.064,19.49,19.479,28.008]
[1693913607978,40.064,19.49,19.48,55.0]
[1693913611588,40.064,19.49,19.479,20.0]
[1693913611785,40.064,19.49,19.477,8.009]
[1693913611786,40.064,19.49,19.478,20.0]
[1693913614884,40.064,19.49,19.477,20.0]
[1693913615071,40.064,19.49,19.478,55.0]
[1693913615275,40.064,19.49,19.479,20.0]
[1693913617487,8.004,19.49,19.479,20.0]
[1693913617689,40.064,19.49,19.479,20.0]
[1693913627495,40.064,19.49,19.476,15.10626282]
[1693913627685,40.064,19.49,19.44,1767.1560359]
[1693913627686,75.0,19.489,19.471,8.011]
[1693913627890,32.06,19.48,19.47,40.85875705]
[1693913628085,8.009,19.478,19.469,8.012]
[1693913628391,8.009,19.478,19.468,15.09861324]
[1693913628589,32.06,19.48,19.469,28.012]
[1693913629298,32.06,19.48,19.47,55.0]
[1693913629594,32.06,19.48,19.472,8.011]
[1693913650616,40.068,19.48,19.47,8.011]
[1693913651001,32.06,19.48,19.47,8.011]
[1693913657216,32.06,19.48,19.471,55.0]
[1693913657419,32.06,19.48,19.473,8.01]
[1693913669038,91.8098,19.485,19.473,8.01]
[1693913669252,91.8098,19.485,19.474,55.0]
[1693913669435,91.8098,19.485,19.477,8.009]
[1693913669736,201.05530697,19.486,19.477,8.009]
[1693913670129,100.2477,19.485,19.477,8.009]
[1693913671037,92.2417,19.485,19.477,8.009]
[1693913671437,100.2477,19.485,19.477,8.009]
[1693913674929,100.2477,19.485,19.475,8.01]
[1693913700366,126.1137,19.485,19.471,40.92449922]
[1693913700549,32.06,19.48,19.472,55.0]
[1693913700850,32.06,19.48,19.472,63.011]
[1693913702048,8.007,19.483,19.472,63.011]
[1693913702254,100.2477,19.485,19.472,63.011]
[1693913703647,8.006,19.485,19.472,63.011]
[1693913714873,8.006,19.485,19.472,104.31284804]
[1693913716967,193.05030697,19.486,19.472,160.80384804]
[1693913720271,201.05530697,19.486,19.472,160.80384804]
[1693913727163,201.05530697,19.486,19.472,104.31284804]
[1693913728068,201.05530697,19.486,19.472,120.05976795]
[1693913729074,201.05530697,19.486,19.472,65.05976795]
[1693913729309,257.50530697,19.486,19.472,15.74691991]
[1693913729467,257.50530697,19.486,19.469,8.012]
[1693913729468,8.009,19.476,19.468,8.012]
[1693913729778,8.009,19.476,19.469,20.0]
[1693913730282,8.009,19.478,19.469,28.012]
[1693913731267,8.009,19.478,19.47,55.0]
[1693913731463,8.009,19.478,19.47,63.011]
[1693913732679,32.06,19.48,19.47,8.011]
[1693913733484,8.008,19.479,19.47,8.011]
[1693913733879,8.008,19.479,19.468,41.29774126]
[1693913734173,8.008,19.479,19.469,20.0]
[1693913734582,8.008,19.479,19.469,28.012]
[1693913737168,32.06,19.48,19.469,28.012]
[1693913738383,40.068,19.48,19.469,28.012]
[1693913739777,32.06,19.48,19.469,28.012]
[1693913744580,40.068,19.48,19.469,28.012]
[1693913750090,40.068,19.48,19.469,20.0]
[1693913750295,55.0,19.479,19.468,20.0]
[1693913750494,8.009,19.476,19.467,20.0]
[1693913750980,8.009,19.476,19.467,28.013]
[1693913753299,8.009,19.476,19.467,8.013]
[1693913753482,8.011,19.472,19.451,102.307]
[1693913753685,8.013,19.468,19.459,8.016]
[1693913754781,40.072,19.47,19.459,8.016]
[1693913762502,55.0,19.469,19.459,8.016]
[1693913762701,8.013,19.466,19.459,8.016]
[1693913763195,8.013,19.466,19.455,8.018]
[1693913763403,32.06,19.46,19.452,8.019]
[1693913763611,40.076,19.46,19.452,8.019]
[1693913764292,40.076,19.46,19.441,147.28511121]
[1693913764293,65.975,19.46,19.441,147.28511121]
[1693913764498,40.076,19.46,19.446,8.021]
[1693913765298,75.0,19.459,19.439,25.926]
[1693913765499,75.0,19.459,19.444,8.022]
[1693913765500,32.06,19.45,19.444,8.022]
[1693913766292,40.08,19.45,19.443,8.023]
[1693913766507,32.06,19.45,19.443,8.023]
[1693913766816,40.08,19.45,19.443,8.023]
[1693913767206,40.08,19.45,19.441,8.024]
[1693913768395,32.06,19.45,19.441,8.024]
[1693913769909,40.08,19.45,19.441,8.024]
[1693913772905,32.06,19.45,19.441,8.024]
[1693913773415,40.08,19.45,19.441,8.024]
[1693913778213,32.06,19.45,19.441,8.024]
[1693913781306,40.08,19.45,19.441,8.024]
[1693913784711,32.06,19.45,19.441,8.024]
[1693913790119,32.06,19.45,19.444,8.022]
[1693913797432,92.7632,19.455,19.445,55.0]
[1693913797620,57.959,19.46,19.448,8.021]
[1693913797621,32.06,19.46,19.448,8.021]
[1693913797817,20.0,19.459,19.448,8.021]
[1693913798017,28.017,19.459,19.449,55.0]
[1693913798227,28.017,19.459,19.45,8.02]
[1693913804424,28.017,19.459,19.449,55.0]
[1693913804823,28.017,19.459,19.449,63.02]
[1693913810430,32.06,19.46,19.449,55.0]
[1693913810638,99.2722,19.463,19.449,88.933]
[1693913811133,8.015,19.463,19.449,88.933]
[1693913811333,8.014,19.465,19.449,88.933]
[1693913815828,8.014,19.465,19.449,130.92374549]
[1693913817242,8.014,19.465,19.449,156.47695136]
[1693913819242,90.4582,19.466,19.449,156.47695136]
[1693913819436,98.4712,19.466,19.449,156.47695136]
[1693913820429,8.013,19.466,19.449,156.47695136]
[1693913823252,8.013,19.466,19.45,57.61320587]
[1693913823436,8.013,19.468,19.454,33.924]
[1693913823635,8.013,19.468,19.455,55.0]
[1693913823840,8.013,19.468,19.458,8.016]
[1693913836375,7.513,19.468,19.458,8.016]
[1693913836578,7.513,19.468,19.458,7.516]
[1693913836783,0.49999999,19.467,19.458,7.516]
[1693913836967,8.51299999,19.467,19.458,7.516]
[1693913837277,8.51299999,19.467,19.459,63.016]
[1693913841372,8.51299999,19.467,19.459,8.016]
[1693913843287,8.51299999,19.467,19.458,48.85153236]
[1693913843582,8.51299999,19.467,19.445,102.337]
[1693913843767,32.06,19.46,19.451,8.019]
[1693913843966,40.076,19.46,19.451,8.019]
[1693913846086,40.076,19.46,19.452,55.0]
[1693913846285,40.076,19.46,19.453,8.019]
[1693913846483,40.076,19.46,19.454,55.0]
[1693913847185,32.06,19.46,19.454,55.0]
[1693913847393,32.06,19.46,19.454,63.018]
[1693913849776,32.06,19.46,19.454,8.018]
[1693913849979,40.076,19.46,19.452,8.019]
[1693913850688,32.06,19.46,19.452,8.019]
[1693913853384,8.015,19.462,19.452,8.019]
[1693913853988,0.49999999,19.461,19.452,8.019]
[1693913854398,32.11,19.46,19.452,8.019]
[1693913856082,32.11,19.46,19.452,49.75795168]
[1693913858982,0.49999999,19.459,19.452,49.75795168]
[1693913861894,32.11,19.46,19.452,49.75795168]
[1693913866099,0.49999999,19.459,19.452,49.75795168]
[1693913866296,32.11,19.46,19.452,49.75795168]
[1693913866485,0.49999999,19.459,19.452,49.75795168]
[1693913869389,32.11,19.46,19.452,49.75795168]
[1693913871494,0.49999999,19.459,19.452,49.75795168]
[1693913878106,32.11,19.46,19.452,49.75795168]
[1693913878312,0.49999999,19.459,19.452,49.75795168]
[1693913883912,32.11,19.46,19.452,49.75795168]
[1693913887122,0.49999999,19.464,19.452,49.75795168]
[1693913887303,0.49999999,19.464,19.452,75.31115755]
[1693913887618,0.49999999,19.464,19.453,25.55320587]
[1693913887803,0.49999999,19.464,19.456,33.921]
[1693913888213,8.013,19.468,19.456,33.921]
[1693913888414,0.49999999,19.467,19.456,33.921]
[1693913889603,0.49999999,19.469,19.456,33.921]
[1693913889804,20.49999999,19.469,19.456,33.921]
[1693913890003,28.51199999,19.469,19.456,33.921]
[1693913896019,28.51199999,19.469,19.456,8.017]
[1693913900624,28.51199999,19.469,19.456,49.57175577]
[1693913900916,28.51199999,19.469,19.452,41.73895168]
[1693913901221,32.11,19.46,19.453,8.019]
[1693913913139,32.11,19.46,19.453,48.61098354]
[1693913915016,32.11,19.46,19.453,105.15698354]
[1693913915428,0.49999999,19.465,19.453,105.15698354]
[1693913916229,0.49999999,19.466,19.453,105.15698354]
[1693913919431,0.49999999,19.466,19.454,20.0]
[1693913919622,0.49999999,19.469,19.457,90.452]
[1693913919827,0.49999999,19.469,19.458,20.0]
[1693913920032,0.49999999,19.469,19.461,33.912]
[1693913926034,32.11,19.47,19.461,33.912]
[1693913927036,0.49999999,19.469,19.461,33.912]
[1693913930038,0.49999999,19.469,19.461,75.26451797]
[1693913934343,0.49999999,19.476,19.461,75.26451797]
[1693913940743,0.49999999,19.478,19.462,20.0]
[1693913940945,0.49999999,19.478,19.466,90.411]
[1693913941141,0.49999999,19.478,19.467,20.0]
[1693913941336,0.49999999,19.478,19.47,8.012]
[1693913941642,0.49999999,19.479,19.47,8.012]
[1693913942450,8.50799999,19.479,19.47,8.012]
[1693913947753,0.49999999,19.479,19.47,8.012]
[1693913950840,0.49999999,19.479,19.47,64.509]
[1693913951045,0.49999999,19.479,19.471,55.0]
[1693913951258,0.49999999,19.479,19.473,8.01]
[1693913958558,0.49999999,19.479,19.474,55.0]
[1693913958754,0.49999999,19.479,19.475,8.01]
[1693913959261,0.49999999,19.482,19.475,8.01]
[1693913959668,0.49999999,19.485,19.475,8.01]
[1693913962749,8.50599999,19.485,19.475,8.01]
[1693913965860,6.00599999,19.485,19.475,8.01]
[1693913968776,6.00599999,19.485,19.475,8.01]
[1693913978575,6.00599999,19.485,19.468,25.888]
[1693913978883,32.11,19.48,19.469,20.0]
[1693913979069,40.118,19.48,19.471,8.011]
[1693913983567,40.118,19.48,19.466,15.6302003]
[1693913983772,55.0,19.479,19.466,23.6432003]
[1693913983979,8.01,19.476,19.467,20.0]
[1693913984182,8.01,19.476,19.467,28.013]
[1693913985984,8.01,19.476,19.467,8.013]
[1693913986182,8.01,19.476,19.465,8.014]
[1693913986390,32.11,19.47,19.466,8.013]
[1693913986699,25.877,19.477,19.466,8.013]
[1693913986992,55.0,19.476,19.466,8.013]
[1693913987191,8.01,19.474,19.466,8.013]
[1693913993399,8.01,19.476,19.466,8.013]
[1693913994473,97.8126,19.478,19.466,33.904]
[1693913994989,8.009,19.477,19.466,8.013]
[1693914004799,8.009,19.477,19.466,23.79306165]
[1693914005000,8.009,19.477,19.467,55.0]
[1693914005200,8.009,19.477,19.468,8.012]
[1693914007989,97.8126,19.478,19.468,8.012]
[1693914008491,8.009,19.477,19.468,8.012]
[1693914017105,8.009,19.477,19.467,55.0]
[1693914017299,8.009,19.477,19.467,63.013]
[1693914031207,8.009,19.477,19.467,88.902]
[1693914031517,8.009,19.477,19.467,63.013]
[1693914044411,8.009,19.477,19.468,20.0]
[1693914044921,8.009,19.477,19.467,20.0]
[1693914045706,32.11,19.48,19.467,28.013]
[1693914046724,8.009,19.478,19.467,28.013]
[1693914048723,8.009,19.478,19.467,20.0]
[1693914048914,8.009,19.478,19.467,28.013]
[1693914051322,40.118,19.48,19.467,28.013]
[1693914051523,32.11,19.48,19.467,28.013]
[1693914052223,40.118,19.48,19.467,28.013]
[1693914052926,32.11,19.48,19.467,28.013]
[1693914053530,55.0,19.479,19.467,28.013]
[1693914053730,63.008,19.479,19.467,28.013]
[1693914055434,32.11,19.48,19.467,110.407]
[1693914060136,32.11,19.48,19.471,8.011]
[1693914065342,32.11,19.48,19.474,90.374]
[1693914065839,32.11,19.48,19.476,8.009]
[1693914066038,8.005,19.487,19.476,8.009]
[1693914066628,106.6715,19.489,19.476,8.009]
[1693914066843,8.005,19.488,19.476,8.009]
[1693914067237,8.005,19.487,19.476,8.009]
[1693914067632,106.6715,19.489,19.476,8.009]
[1693914067939,8.005,19.488,19.476,8.009]
[1693914068643,98.6675,19.489,19.476,8.009]
[1693914068838,8.006,19.485,19.47,25.885]
[1693914069026,32.11,19.48,19.473,8.01]
[1693914069228,32.11,19.48,19.471,8.011]
[1693914069431,55.0,19.479,19.466,15.78006165]
[1693914069732,63.008,19.479,19.468,8.013]
[1693914069927,63.008,19.479,19.469,28.012]
[1693914072244,55.0,19.479,19.469,28.012]
[1693914072847,8.009,19.477,19.469,20.0]
[1693914073041,8.009,19.477,19.465,20.0]
[1693914073744,8.009,19.477,19.468,8.013]
[1693914073941,8.009,19.477,19.469,28.012]
[1693914074138,55.0,19.479,19.469,28.012]
[1693914074139,8.009,19.478,19.469,8.012]
[1693914076235,55.0,19.479,19.469,8.012]
[1693914076944,63.008,19.479,19.469,8.012]
[1693914078334,8.008,19.479,19.469,8.012]
[1693914078538,32.11,19.48,19.469,8.012]
[1693914079650,40.118,19.48,19.469,8.012]
[1693914094458,32.11,19.48,19.469,8.012]
[1693914095754,40.118,19.48,19.469,8.012]
[1693914096260,32.11,19.48,19.469,8.012]
[1693914099556,32.11,19.48,19.469,64.512]
[1693914099753,32.11,19.48,19.47,55.0]
[1693914099961,193.05030697,19.486,19.47,55.0]
[1693914099962,193.05030697,19.486,19.473,90.38]
[1693914100253,193.05030697,19.486,19.474,55.0]
[1693914100462,193.05030697,19.486,19.477,8.009]
[1693914100771,8.004,19.488,19.48,8.008]
[1693914101347,40.114,19.49,19.48,8.008]
[1693914101553,241.68877995,19.494,19.481,55.0]
[1693914101753,241.68877995,19.494,19.484,90.325]
[1693914101955,241.68877995,19.494,19.485,55.0]
[1693914102150,241.68877995,19.494,19.487,33.868]
[1693914102655,95.5905,19.498,19.487,33.868]
[1693914113267,103.5905,19.498,19.487,33.868]
[1693914115471,55.0,19.497,19.482,25.869]
[1693914115787,32.11,19.49,19.484,8.006]
[1693914115970,32.11,19.49,19.477,25.876]
[1693914116168,65.973,19.49,19.479,8.008]
[1693914116471,75.0,19.489,19.476,15.39579054]
[1693914116767,8.005,19.487,19.479,8.008]
[1693914117162,99.032,19.488,19.479,8.008]
[1693914121965,99.032,19.488,19.479,64.479]
[1693914122666,32.11,19.49,19.479,64.479]
[1693914125375,32.11,19.49,19.48,55.0]
[1693914125683,32.11,19.49,19.483,8.006]
[1693914133474,32.11,19.49,19.484,55.0]
[1693914133787,32.11,19.49,19.485,33.87]
[1693914143398,32.11,19.49,19.485,8.005]
[1693914145304,32.11,19.49,19.485,33.871]
[1693914145695,32.11,19.49,19.485,8.005]
[1693914155591,32.11,19.49,19.484,8.006]
[1693914155804,40.114,19.49,19.478,41.50230887]
[1693914156004,40.114,19.49,19.48,8.008]
[1693914159014,96.7048,19.489,19.48,8.008]
[1693914159213,8.005,19.488,19.48,8.008]
[1693914159615,96.7048,19.489,19.48,8.008]
[1693914160414,104.7088,19.489,19.48,8.008]
[1693914162620,96.7048,19.489,19.48,8.008]
[1693914163325,104.7088,19.489,19.48,8.008]
[1693914164430,96.7048,19.489,19.48,8.008]
[1693914168636,32.11,19.49,19.48,8.008]
[1693914168941,8.0,19.498,19.481,55.0]
[1693914169140,8.0,19.498,19.486,33.869]
[1693914182740,1.99999999,19.499,19.486,33.869]
[1693914183046,1.99999999,19.499,19.487,20.49999999]
[1693914183345,1.99999999,19.499,19.49,90.298]
[1693914192642,32.11,19.5,19.49,90.298]
[1693914193255,32.11,19.5,19.491,0.49999999]
[1693914193454,32.11,19.5,19.493,33.856]
[1693914198057,32.11,19.5,19.493,8.002]
[1693914206466,40.11,19.5,19.491,8.003]
[1693914206768,1.99999999,19.499,19.491,8.003]
[1693914208268,40.11,19.5,19.491,8.003]
[1693914210371,1.98537054,19.499,19.491,8.003]
[1693914210756,40.11,19.5,19.491,8.003]
[1693914210968,1.9918801,19.499,19.491,8.003]
[1693914211251,9.9918801,19.499,19.491,8.003]
[1693914211451,8.0,19.499,19.491,8.003]
[1693914215768,32.11,19.5,19.491,8.003]
[1693914222771,1.99999999,19.499,19.491,8.003]
[1693914242996,9.99999999,19.499,19.488,8.004]
[1693914243301,20.0,19.498,19.486,0.49999999]
[1693914243595,33.855,19.495,19.484,8.006]
[1693914243795,32.11,19.49,19.484,8.006]
[1693914244409,32.11,19.49,19.485,0.49999999]
[1693914244701,32.11,19.49,19.485,8.50499999]
[1693914244902,32.11,19.49,19.485,8.005]
[1693914253795,32.11,19.49,19.483,8.006]
[1693914254906,40.114,19.49,19.483,8.006]
[1693914255109,40.114,19.49,19.481,0.49999999]
[1693914255798,32.11,19.49,19.483,8.006]
[1693914260505,32.11,19.49,19.484,0.49999999]
[1693914260806,32.11,19.49,19.485,8.005]
[1693914269626,8.004,19.489,19.477,40.66829142]
[1693914270616,8.004,19.489,19.479,8.008]
[1693914270809,8.004,19.489,19.48,0.49999999]
[1693914271607,8.004,19.489,19.48,8.50699999]
[1693914271815,8.004,19.489,19.48,8.007]
[1693914275716,8.004,19.489,19.481,0.49999999]
[1693914276918,8.004,19.489,19.48,8.007]
[1693914278407,8.004,19.489,19.478,0.49999999]
[1693914278617,20.0,19.488,19.478,0.49999999]
[1693914278829,33.872,19.485,19.474,0.49999999]